Cogmind - Beta 13 @@@ ROGUE MODE // 2024.04.09 @ 17:37:07 Player: Rocketboy Result: Destroyed by G-47 Trooper with Particle Gun Performance ------------- Evolutions (2) 1000 Regions Visited (4) 800 Robots Destroyed (48) 240 Value Destroyed (1046) 1046 Prototype IDs (0) 0 Alien Tech Used (0) 0 Bonus (48) 48 TOTAL SCORE: 3134 Bonus ------- High Alert Combat Kills 48 Cogmind --------- Core Integrity 0/550 Matter 140/300 Energy 140/140 System Corruption 0% Temperature Cool (23) Movement Walking (123) Location -8/Materials Parts ------- > --- POWER (1) -------- Light Deuterium Engine > --- PROPULSION (6) --- Aluminum Leg Aluminum Leg Titanium Leg > --- UTILITY (2) ------ Machine Analyzer Advanced Targeting Computer > --- WEAPON (2) ------- Gauss Rifle Gauss Rifle > --- INVENTORY (5) ---- Light Deuterium Engine Advanced Targeting Computer Gauss Rifle Missile Launcher Peak State ------------ > --- POWER ------------ Light Deuterium Engine > --- PROPULSION ------- Aluminum Leg Aluminum Leg Aluminum Leg Aluminum Leg Improved Aluminum Leg Titanium Leg > --- UTILITY ---------- Machine Analyzer Advanced Targeting Computer > --- WEAPON ----------- Gauss Rifle Gauss Rifle > --- INVENTORY -------- Sensor Array Improved Signal Interpreter Gauss Rifle Gauss Rifle Missile Launcher [Rating: 27] Favorites ----------- Power Light Ion Engine Engine Light Ion Engine Power Core Light Nuclear Core Propulsion Aluminum Leg Treads Light Treads Leg Aluminum Leg Flight Unit Flight Unit Utility Improved Terrain Scanner Device Improved Terrain Scanner Storage Large Storage Unit Processor Advanced Targeting Computer Weapon Small Laser Energy Gun Small Laser Ballistic Gun Gauss Rifle Launcher Rocket Launcher Slashing Weapon Mining Claw Build | -11 -10 -10 -9 -8 ------- Run | Yrd Mat Min Mat Mat Slots Evolved 4 | . . . 2 2 Power . | . . . . . Propulsion 4 | . . . 2 2 Utility . | . . . . . Weapon . | . . . . . Parts Attached 65 | 7 6 1 8 43 Power 4 | 1 . . . 3 Engine 3 | 1 . . . 2 Core 1 | . . . . 1 Reactor . | . . . . . Propulsion 30 | 2 2 . 4 22 Treads 2 | . 2 . . . Leg 13 | 2 . . . 11 Wheel . | . . . . . Hover . | . . . . . Flight 15 | . . . 4 11 Utility 8 | 2 2 . 3 1 Device 2 | 1 . . 1 . Storage 3 | 1 2 . . . Processor 3 | . . . 2 1 Hackware . | . . . . . Protection . | . . . . . Artifact . | . . . . . Weapon 23 | 2 2 1 1 17 Energy Gun 5 | 2 1 . 1 1 Energy Cannon . | . . . . . Ballistic Gun 10 | . . . . 10 Ballistic Cannon . | . . . . . Launcher 6 | . 1 1 . 4 Special Weapon . | . . . . . Impact Weapon . | . . . . . Slashing Weapon 2 | . . . . 2 Piercing Weapon . | . . . . . Special Melee Weapon . | . . . . . Unidentified Prototypes . | . . . . . Parts Lost 20 | . . . . 20 Power 1 | . . . . 1 Propulsion 15 | . . . . 15 Utility . | . . . . . Weapon 4 | . . . . 4 Highest Loss Streak 13 | . . . . 13 To Critical Strikes . | . . . . . Average Slot Usage (%) 95 | . 100 100 96 90 Engine 10 | . 14 14 11 6 Treads 11 | . 20 28 . . Leg 15 | . 7 . . 29 Flight 10 | . . . 40 17 Device 7 | . 14 14 3 . Storage 6 | . 14 14 1 . Processor 9 | . . . 17 18 Energy Gun 14 | . 27 25 11 . Ballistic Gun 6 | . . . . 13 Launcher 2 | . . 2 11 1 Naked Turns . | . . . . . Heaviest Build 47 | 12 47 29 10 15 Greatest Support 70 | 20 40 40 16 70 Greatest Overweight (x) 2 | 2 2 . . 1 Average Overweight (x) . | . . . . . Largest Inventory Capacity 20 | 8 20 15 15 5 Average Capacity 9 | 7 15 15 6 5 Most Carried 15 | 2 12 15 15 5 Average Carried 7 | 1 9 12 5 4 Final Capacity 15 | 8 15 15 5 5 Final Carried 15 | 2 12 15 5 4 Class Distribution -------------------- 79% | Mutant 8% | Sprinter 8% | Scavenger-Sprinter 3% | Scavenger-Mutant Dominant Class ---------------- Mutant | -10/Materials Mutant | -10/Mines Sprinter | -9/Materials Mutant | -8/Materials Resources | -11 -10 -10 -9 -8 ----------- Run | Yrd Mat Min Mat Mat Matter Collected 1302 | 260 19 93 1 929 Remotely . | . . . . . Salvage Created 1386 | 201 77 19 19 1070 Parts 113 | 15 8 5 8 77 Haulers Intercepted 2 | . 1 . . 1 Recyclers Shooed . | . . . . . Parts Field Recycled . | . . . . . Retrieved Matter . | . . . . . Parts Self-Destructed . | . . . . . Prevented . | . . . . . Kills | -11 -10 -10 -9 -8 ------- Run | Yrd Mat Min Mat Mat Combat Hostiles Destroyed 30 | . . 4 4 22 Melee 2 | . . . . 2 Guns 19 | . . 1 1 17 AOE 9 | . . 3 3 3 Classes Destroyed 12 | 2 2 2 . 6 Worker 4 | . . . . 4 Builder 1 | . . . . 1 Tunneler 6 | 5 . . . 1 Hauler 2 | . 1 . . 1 Recycler 3 | 1 . . . 2 Watcher 2 | . 1 . . 1 Swarmer 14 | . . 3 4 7 Grunt 8 | . . . . 8 Duelist 1 | . . . . 1 Sentry 5 | . . . . 5 Demolisher 1 | . . 1 . . Heavy 1 | . . . . 1 Best Kill Streak 6 | 4 1 3 4 6 Combat Bots Only 5 | . . 3 4 5 Max Kills in Single Turn 3 | 1 1 3 3 2 Gunslinging . | . . . . . Exploded 3 | . . 3 3 2 Melee 1 | . . . . 1 Uniques/NPCs Destroyed . | . . . . . Combat | -11 -10 -10 -9 -8 -------- Run | Yrd Mat Min Mat Mat Hostile Shots Fired 238 | . . 5 2 231 Missed 79 | . . . . 79 Damage Taken 2427 | . . 170 18 2239 Core 578 | . . 8 9 561 Absorbed by Shields . | . . . . . Regen/Repaired (Parts) 4 | . . . 4 . Core Remaining (%) 97 | 100 . 96 97 . Volleys Fired 118 | 11 7 4 2 94 Largest 2 | 2 2 2 2 2 Hottest 90 | 90 90 90 73 78 Shots Fired 204 | 22 14 8 3 157 Gun 191 | 22 14 7 1 147 Cannon . | . . . . . Launcher 13 | . . 1 2 10 Special . | . . . . . Kinetic 141 | . . . . 141 Thermal 44 | 22 14 7 1 . Explosive 13 | . . 1 2 10 Electromagnetic 6 | . . . . 6 Robot Hit Streak 10 | 3 4 6 1 10 Robot Miss Streak 7 | 2 3 2 . 7 Penetration Max 1 | . . . . 1 Secondary Targets 2 | . . . . 2 Max Gunslinging Chain 1 | . . . . 1 Shots Hit Robots 145 | 12 8 5 1 119 Core Hits 75 | 7 3 5 4 56 Critical Kills 1 | . . . . 1 Critical Parts Destroyed . | . . . . . Critical Strikes 1 | . . . . 1 Destroy 1 | . . . . 1 Melee Attacks 16 | . . . . 16 Impact . | . . . . . Slashing 16 | . . . . 16 Piercing . | . . . . . Sneak Attacks 1 | . . . . 1 Combat Hostiles . | . . . . . Follow-up Attacks . | . . . . . Damage Inflicted 3186 | 139 95 207 211 2534 Guns 2204 | 139 95 60 10 1900 Cannons . | . . . . . Explosions 767 | . . 147 201 419 Melee 215 | . . . . 215 Ramming . | . . . . . Kinetic 1803 | . . . . 1803 Thermal 304 | 139 95 60 10 . Explosive 767 | . . 147 201 419 Electromagnetic 97 | . . . . 97 Impact . | . . . . . Slashing 215 | . . . . 215 Piercing . | . . . . . Highest Corruption 4 | . 4 4 . . Average Corruption 3 | . 3 4 . . Corruption Purged . | . . . . . Corruption Blocked . | . . . . . Effects 11 | . . 11 . . Message Errors 2 | . . 2 . . Matter Fused 4 | . . 4 . . Heat Flow Errors 2 | . . 2 . . Energy Discharges 3 | . . 3 . . Overload Shots . | . . . . . Overflow Damage 14 | . . . . 14 Projectiles . | . . . . . Explosions 14 | . . . . 14 Melee . | . . . . . Knockbacks . | . . . . . Impact . | . . . . . Kinetic . | . . . . . Secondary . | . . . . . Self-Inflicted Damage 54 | . . . . 54 Shots 2 | . . . . 2 Rammed . | . . . . . Targets Rammed . | . . . . . Kicked . | . . . . . Crushed . | . . . . . Highest Temperature 269 | 120 60 269 17 62 Average Temperature 36 | 45 25 103 7 17 Received Heat Transfer 747 | . . . . 747 Siege Activations . | . . . . . Robots Corrupted . | . . . . . Combat Hostiles . | . . . . . Parts Fried . | . . . . . Impact Corruptions . | . . . . . Robots Melted . | . . . . . Combat Hostiles . | . . . . . Parts Melted 1 | 1 . . . . Heat Transferred 818 | 384 248 161 25 . Parts Sabotaged . | . . . . . Parts Stolen . | . . . . . Parts Stripped . | . . . . . Power Chain Reactions . | . . . . . Alert | -11 -10 -10 -9 -8 ------- Run | Yrd Mat Min Mat Mat Peak Influence 483 | 30 48 137 108 483 Initial 45 | . 19 5 . 45 Average 138 | 16 25 20 83 305 Maximum Alert Level 2 | . . . . 2 Low Security (%) 67 | 100 100 100 100 18 Level 1 26 | . . . . 65 Level 2 6 | . . . . 16 Level 3 . | . . . . . Level 4 . | . . . . . Level 5 . | . . . . . High Security . | . . . . . Max Security . | . . . . . Squads Dispatched 3 | . . . . 3 Investigation 1 | . . . . 1 Extermination . | . . . . . Reinforcement 2 | . . . . 2 Assault . | . . . . . Garrison . | . . . . . Intercept . | . . . . . Searches Triggered . | . . . . . Construction Impeded 1 | . . . . 1 Haulers Reinforced . | . . . . . Active Scanning Responses . | . . . . . Cargo Convoy Interrupts . | . . . . . Stealth | -11 -10 -10 -9 -8 --------- Run | Yrd Mat Min Mat Mat Distress Signals 1 | . . . . 1 Communications Jammed . | . . . . . Distress Signals . | . . . . . Times Spotted 39 | . 2 3 4 30 Peak Tracking Total 7 | . 1 3 4 7 Tactical Retreats 3 | . . . . 3 Traps | -11 -10 -10 -9 -8 ------- Run | Yrd Mat Min Mat Mat Traps Triggered 2 | . 2 . . . Indirectly . | . . . . . Trap Hack Attempts . | . . . . . Triggered . | . . . . . Disarmed . | . . . . . Reprogrammed . | . . . . . Reused . | . . . . . Traps Extracted . | . . . . . Installed . | . . . . . Triggered . | . . . . . Machines | -11 -10 -10 -9 -8 ---------- Run | Yrd Mat Min Mat Mat Machines Disabled 3 | . . 1 . 2 Max in Single Turn 2 | . . 1 . 2 Machines Repaired . | . . . . . Machines Dismantled . | . . . . . Machines Sabotaged . | . . . . . Overloaded Fab Kills . | . . . . . Hacking | -11 -10 -10 -9 -8 --------- Run | Yrd Mat Min Mat Mat Machines Accessed 8 | . 3 . 3 2 Terminals 3 | . 3 . . . Fabricators . | . . . . . Repair Stations 2 | . . . 1 1 Recycling Units . | . . . . . Scanalyzers 3 | . . . 2 1 Garrison Access . | . . . . . Total Hacks 18 | . 5 . 8 5 Successful 10 | . 1 . 6 3 Failed 8 | . 4 . 2 2 Catastrophic 1 | . 1 . . . Database Lockouts . | . . . . . Manual 5 | . 5 . . . Terminals 5 | . 5 . . . Fabricators . | . . . . . Repair Stations 7 | . . . 4 3 Recycling Units . | . . . . . Scanalyzers 6 | . . . 4 2 Garrison Access . | . . . . . Terminal Hacks . | . . . . . Fabricator Hacks . | . . . . . Repair Station Hacks 4 | . . . 3 1 Scan Component 3 | . . . 2 1 Repair 1 | . . . 1 . Recycling Unit Hacks . | . . . . . Scanalyzer 5 | . . . 3 2 Insert Component 3 | . . . 2 1 Analyze 2 | . . . 1 1 Garrison Access Hacks . | . . . . . Unauthorized Hacks 1 | . 1 . . . Terminals 1 | . 1 . . . Botnet 1 | . 1 . . . Fabricators . | . . . . . Repair Stations . | . . . . . Recycling Units . | . . . . . Scanalyzers . | . . . . . Garrison Access . | . . . . . Data Cores Recovered . | . . . . . Used . | . . . . . Hacking Detections 8 | . 3 . 3 2 Full Trace Events 1 | . . . . 1 Feedback Events . | . . . . . Feedback Blocked . | . . . . . Robot Schematics Acquired . | . . . . . Robots Built . | . . . . . Authchips . | . . . . . Time . | . . . . . Total Robot Build Rating . | . . . . . Part Schematics Acquired 2 | . . . 1 1 Parts Built . | . . . . . Authchips . | . . . . . Time . | . . . . . Total Part Build Rating . | . . . . . Parts Repaired 1 | . . . 1 . Time 26 | . . . 26 . Parts Recycled . | . . . . . Recycled Matter . | . . . . . Retrieved Matter . | . . . . . Retrieved Components . | . . . . . Parts Scanalyzed 2 | . . . 1 1 Part Schematics Acquired 2 | . . . 1 1 Parts Damaged . | . . . . . Bothacking | -11 -10 -10 -9 -8 ------------ Run | Yrd Mat Min Mat Mat Used RIF Installer . | . . . . . Robots Hacked . | . . . . . Non-combat . | . . . . . Combat . | . . . . . Robot Hacks Applied . | . . . . . Relay Couplers Released . | . . . . . Fabnet Peak Effective % . | . . . . . Robots Rewired . | . . . . . Allies Hacked . | . . . . . Hacks Repelled . | . . . . . Allies | -11 -10 -10 -9 -8 -------- Run | Yrd Mat Min Mat Mat Total Allies . | . . . . . Largest Group . | . . . . . Highest-Rated Group . | . . . . . Highest-Rated Ally . | . . . . . Total Orders . | . . . . . Ally Attacks . | . . . . . Total Damage . | . . . . . Kills . | . . . . . Allies Corrupted . | . . . . . Allies Melted . | . . . . . Intel | -11 -10 -10 -9 -8 ------- Run | Yrd Mat Min Mat Mat Robot Analysis Total . | . . . . . Derelict Logs Recovered . | . . . . . Drone Launches . | . . . . . Drone Recoveries . | . . . . . Exploration | -11 -10 -10 -9 -8 ------------- Run | Yrd Mat Min Mat Mat Turns Passed 1958 | 220 446 410 95 787 Spaces Moved 1242 | 79 238 246 143 536 Core 8 | 8 . . . . Treads 436 | . 190 246 . . Legs 367 | 71 48 . . 248 Wheels . | . . . . . Hover . | . . . . . Flight 431 | . . . 143 288 Fastest Speed 25 | 50 120 160 31 25 Average Speed 105 | 119 168 160 31 70 Slowest Speed 260 | 150 260 160 31 122 Overloaded Moves . | . . . . . Propulsion Burnouts . | . . . . . Robots Hopped 1 | . . . . 1 Cave-ins Triggered . | . . . . . Exploration Rate (%) 34 | 4 41 70 18 39 Regions Visited 4 Branch Regions 1 Pre-discovered Areas . | . . . . . Known Exits Taken . | . . . . . Unknown Exits Taken 4 | 1 1 1 1 . Scrap Searched 1 | . . 1 . . Spaces Dug 1 | . . . . 1 Terrain Destroyed 106 | . . 12 21 73 Melee 1 | . . . . 1 Projectile 1 | . . . . 1 AOE 104 | . . 12 21 71 Terrain Rammed . | . . . . . Walls Destroyed . | . . . . . Machines Disabled . | . . . . . Actions | -11 -10 -10 -9 -8 --------- Run | Yrd Mat Min Mat Mat Total 1650 | 179 269 255 193 754 Wait 142 | 81 . . 26 35 Move 1236 | 78 237 245 142 534 Hop 1 | . . . . 1 Pick Up 35 | 2 14 4 4 11 Fast Attach 34 | 7 5 . 1 21 Attach 12 | . . 1 4 7 Detach 1 | . 1 . . . Swap 19 | . 1 . 3 15 Drop 36 | . 4 1 11 20 Fire 118 | 11 7 4 2 94 Melee 16 | . . . . 16 Ram . | . . . . . Kick . | . . . . . Crush . | . . . . . Escape Stasis . | . . . . . Rewire . | . . . . . Trap . | . . . . . Miscellaneous . | . . . . . Route ------- -11/Scrapyard -10/Materials -10/Mines -9/Materials -8/Materials History --------- Turn | Location | Event 26 | -11/Scrapyard | Discovered new exit (range 15) 221 | -11/Scrapyard | Entered Materials 318 | -10/Materials | Build established: Mutant 643 | -10/Materials | Discovered new exit (range 15) 667 | -10/Materials | Entered Mines 684 | -10/Mines | Met a Derelict bent on vengeance 824 | -10/Mines | Assembled infested the area 1016 | -10/Mines | Received a Rocket Launcher from a helpful Derelict 1041 | -10/Mines | Discovered new exit (range 6) 1077 | -10/Mines | Entered Materials 1077 | -9/Materials | Evolved 2 slots: Propulsion x2 1126 | -9/Materials | Discovered new exit (range 17) 1154 | -9/Materials | Repaired Flight Unit 1172 | -9/Materials | Entered another Materials area 1172 | -8/Materials | Evolved 2 slots: Propulsion x2 1428 | -8/Materials | Core integrity fell below 50% 1489 | -8/Materials | Lost 13 parts (1p9n3w) 1770 | -8/Materials | Core integrity fell below 20% 1959 | -8/Materials | Destroyed by G-47 Trooper with Particle Gun Last Messages --------------- Aluminum Leg destroyed. Knocked back. Slug penetrates H-61 Shepherd. Shock Rifle destroyed. Knocked back. >> Machine Analyzer network decryption results: Terminal x1 The unstable cave ceiling collapses. Slug penetrates H-61 Shepherd. G-47 Trooper destroyed. H-61 Shepherd destroyed. U-05 Engineer lays Concrete. Slug penetrates G-47 Trooper. U-05 Engineer builds a Door. Imp. Aluminum Leg destroyed. Critical hit (Burn: +37). Slug penetrates Wall. U-05 Engineer lays Concrete. Slug penetrates G-47 Trooper. U-05 Engineer lays Concrete. Map ----- +----------------------------------------------------+ | ??????????????????????????????????? | | ??????????????????????????????????? | | ??????????????????????????????????? | | ??????????????????????????????????? | | ??????????????????????????????????? | | ??????????????????????????????????? | | ??????????????????????????????????? | | ??????????????????????????????????? | | ????????????????????????? ??????? | | ????????????????????????? ?????? | | ????????????????????????? ?????? | | ????????????????????????? #????? | | ??????????????????T?????? ????? | | ?????????????????????????!= ??T?? | | ?????????????????"""?????%%% ?????? | | ?????????????????"""????#gg= ?"""?? | | ?????????????????"""????# ?"""?? | | ????????????????????????# #?"""?? | | ????????????????????????# #? ??? | | ????????????????????????; # """?? | | ??????????????????????### # """ # | | ????????????#######??## ?""" ? | | ?############ #### # ??? | | ? ????? | | ?? #?????? | | ??? = u @ #?????? | | ????????#+### [ ###/# # % #?????? | | ????????????##! ##! !#?????? | | ?????????????# ## ;#????? | | ?????????????# ## """ " " ##????? | | ?????????????# ## """ """ #?????? | | ####?????????# ## """ """ #?????? | | #?????????# ^## #?????? | | #?????????# ## ] #?????? | | #?######### ## [ [ ! #?????? | | #?# ! # ############?????? | | #?# # #????????????????? | | " #?# +! #????????????????? | | "" #?# ] # #????????????T???? | | S" #?# ]! #=*=#????????????????? | | #?######### =*###??"""""""?????? | | ############*=!*= #??"""""""?????? | | = !* #??"""""""?????? | | *=[! !# """""""?????? | | % = * * " """""""?????? | | !=! !# ????? | | # #?? | | #####+#"#### #? ! #?? | | ??? ??#########? #?? | | ? ???????????? ??? | +----------------------------------------------------+ Best States ------------- Heat Dissipation 31 Energy Generation 14 Energy Capacity 160 Matter Stores 300 Matter Capacity 300 Sight Range 18 Robot Scan Range 14 Terrain Scan Range 16 Terrain Scan Density 10 Evasion (%) 65 Targeting Accuracy 8 Recoil Reduction 2 Item Schematics ----------------- Flight Unit | -9/Materials | Scanalyzed Imp. Signal Interpreter | -8/Materials | Scanalyzed Robot Schematics ------------------ None Fabricated ------------ Nothing Alien Tech Used ----------------- None Achievements -------------- None Challenges ------------ None Game ------ Seed RagnarokWaveMaul Manual? 0 Play Time 00:24:43 Cumulative 28.4 hours Start 2024.04.09 @ 17:12:41 End 2024.04.09 @ 17:37:07 Sessions 1 Manual Loads 0 Difficulty Rogue Special Mode None Game No. 45 Rogue 45 Adventurer 0 Explorer 0 Win Type - Total 0 Types 0/0/0/0/0/0/0/0/0 Lore% 21 Gallery% 35 Achievement% 28 Wizard Run 0 Options --------- Layout 1 ASCII 0 Keyboard 0 Movement Mouse Keybinds 0 Fullscreen 1 Font 32/SmallcapsGlow Map View 50x35 Zoom Use 0% Tactical HUD 0 Map Filters NONE Filters NONE Steam 1 RUN: 5c3d19c1-adad-4f11-9b67-c728e46dcc3e